[Event "1000GM Saint Louis 2022"]
[Site "Saint Louis"]
[Date "2022.07.20"]
[Round "4.1"]
[White "Woodward, Andy"]
[Black "Kretchetov, Alexandre"]
[Result "1-0"]
[ECO "D10"]
[WhiteElo "2486"]
[BlackElo "2219"]
[Annotator "TA"]
[PlyCount "149"]
[EventDate "2022.07.20"]
[EventType "tourn"]
[EventCountry "USA"]
[SourceTitle "playchess.com"]
[Source "ChessBase"]
[SourceQuality "1"]
[TimeControl "5400+30"]

{[%evp 12,149,22,16,32,25,33,12,21,10,34,25,90,72,69,84,95,94,101,111,102,95,75,43,49,39,60,82,72,84,64,78,111,112,102,108,112,101,122,121,135,132,132,121,116,106,114,106,106,98,114,114,147,144,157,107,123,142,202,195,195,195,195,193,176,179,184,188,181,90,77,74,76,83,216,207,234,239,218,216,204,58,58,0,0,0,0,0,0,0,0,-293,-275,-265,-20,-20,0,0,0,0,0,0,0,0,0,0,0,0,0,0,6,6,6,6,6,0,0,0,6,6,6,6,29967,29970,29969,29970,29971,29973,29972,29973,29983,29984,29984,29985,29985,29985,29986,29987,29987,29987]} 1. d4 {[%emt 0:00:03]} d5 {[%emt 0:00:08]} 2. c4 {[%emt 0:00:08]} c6 {[%emt 0:00:14]} 3. cxd5 {[%emt 0:00:11]} cxd5 {[%emt 0:00:05]} 4. Nc3 {[%emt 0:00:07]} Nf6 {[%emt 0:00:28]} 5. Bf4 {[%emt 0:00:06]} Nc6 {[%emt 0:00:06]} 6. e3 {[%emt 0:00:06]} a6 {[%emt 0:00:05]} 7. Be2 {[%emt 0:00:09]} e6 {[%emt 0:02:28] D10: Slav Defence: 3 cxd5 (without early Nf3) and 3 Nc3.} 8. Nf3 {[%emt 0:00:11]} Be7 {[%emt 0:00:08]} 9. Ne5 {[%emt 0:04:57]} Bd7 {[%emt 0:04:24] [#] The position is equal.} 10. Bd3 $146 {[%emt 0:02:55]} ({Predecessor:} 10. O-O O-O 11. Bd3 Rc8 12. Qf3 Be8 13. Qh3 Kh8 14. Rac1 g6 15. Bh6 Rg8 16. f4 {1-0 (49) Rakhmanov,A (2653)-McShane,L (2640) Riadh 2017}) 10... Rc8 {[%emt 0:09:20]} 11. O-O {[%emt 0:00:55]} b5 {[%emt 0:02:10]} (11... Nb4 $11) 12. a4 {[%emt 0:02:14]} b4 {[%emt 0:00:10]} 13. Ne2 {[%emt 0:00:46] White is much more active.} (13. Bxa6 $6 bxc3 14. Nxd7 Qxd7 $11) 13... Qb6 {[%emt 0:01:55]} 14. Ng3 {[%emt 0:01:09]} O-O {[%emt 0:03:04]} 15. Bg5 {[%emt 0:05:17] aiming for Bxf6.} (15. Bxh7+ $2 Kxh7 16. Bg5 Qb7 17. Bxf6 Bxf6 $19) 15... Be8 {[%emt 0:00:09]} 16. Nxc6 {[%emt 0:00:21]} Rxc6 {[%emt 0:04:41]} 17. a5 {[%emt 0:08:08]} Qb7 {[%emt 0:03:03]} 18. Nh5 {[%emt 0:11:41]} Nxh5 {[%emt 0:02:45]} 19. Bxe7 {[%emt 0:00:12]} (19. Qxh5 g6 20. Qh6 Bxg5 21. Qxg5 Rc8 $11) 19... Qxe7 {[%emt 0:00:46]} 20. Qxh5 {[%emt 0:00:06][%csl Gd3][%cal Rh5h7]} g6 {[%emt 0:23:31]} 21. Qe2 {[%emt 0:00:35]} Qd6 {[%emt 0:00:31]} 22. Rfc1 {[%emt 0:10:35]} Rxc1+ {[%emt 0:00:05]} 23. Rxc1 {[%emt 0:00:05]} Bd7 {[%emt 0:00:04]} 24. f4 {[%emt 0:00:27]} ({Reject} 24. Bxa6 $6 Ra8 25. Bd3 Rxa5 $11) 24... Rc8 {[%emt 0:04:13]} 25. Rxc8+ {[%emt 0:01:20]} Bxc8 $16 {[%emt 0:00:03][%mdl 4096] Endgame KQB-KQB} 26. Qc2 {[%emt 0:00:12]} Bb7 {[%emt 0:00:10]} 27. Kf1 {[%emt 0:01:03]} Kf8 {[%emt 0:00:15]} 28. Ke1 {[%emt 0:00:26]} Ke7 {[%emt 0:00:12]} 29. Kd1 {[%emt 0:00:34]} f6 {[%emt 0:05:03]} 30. Kc1 {[%emt 0:03:44]} e5 {[%emt 0:02:19]} 31. g3 {[%emt 0:01:05]} exd4 {[%emt 0:09:54]} 32. exd4 {[%emt 0:00:43]} Kd8 {[%emt 0:00:05]} 33. Kb1 {[%emt 0:00:51]} (33. f5 $142) 33... Qe7 {[%emt 0:03:28]} 34. Qe2 $1 {[%emt 0:03:25] Against Qe3} Qd6 {[%emt 0:05:01]} (34... Qd7 $16) 35. Ka2 {[%emt 0:03:46]} Qc7 {[%emt 0:01:15]} 36. Qe6 {[%emt 0:00:23]} Qxa5+ {[%emt 0:01:56]} 37. Kb3 $1 {[%emt 0:00:17]} Qa1 {[%emt 0:00:30]} 38. Qxf6+ {[%emt 0:02:51]} Kc7 {[%emt 0:00:08]} 39. Qe7+ {[%emt 0:00:18]} (39. Kxb4 Qxb2+ 40. Ka4 Bc6+) 39... Kb8 {[%emt 0:00:17]} 40. Qf8+ {[%emt 0:01:41]} ({Stronger than} 40. Kxb4 Qxb2+ 41. Ka5 Qxd4 $15) (40. Qxb4 $18 {has better winning chances.} Qd1+ 41. Bc2) 40... Ka7 {[%emt 0:00:18]} 41. Qc5+ {[%emt 0:02:17]} Ka8 {[%emt 0:00:17]} 42. Qxb4 {[%emt 0:00:25]} Qd1+ {[%emt 0:00:44]} (42... Qg1 $16 {was called for.}) 43. Bc2 $18 {[%emt 0:00:05] Threatening mate with Qf8+.} Qe2 {[%emt 0:00:23]} 44. Qf8+ {[%emt 0:00:59]} Ka7 {[%emt 0:00:08]} 45. Qc5+ {[%emt 0:00:06]} Ka8 {[%emt 0:00:13]} 46. Ka4 {[%emt 0:01:22]} ({White should try} 46. h4 $18) 46... Qxh2 $14 {[%emt 0:02:34]} 47. Ka5 {[%emt 0:10:43]} ({Better is} 47. Qc3 $1 $14) 47... Qxg3 $11 {[%emt 0:00:50]} 48. Qf8+ {[%emt 0:02:41]} Ka7 {[%emt 0:00:04]} 49. Ba4 {[%emt 0:02:55]} Qe1+ {[%emt 0:01:30]} 50. b4 {[%emt 0:00:10]} Qe6 {[%emt 0:01:48][%csl Ga7][%cal Re6b6]} 51. Qd8 {[%emt 0:00:26][%mdl 8192] Inhibits Qb6+.} (51. Qc5+ $11 {and White stays safe.} Kb8 52. Qb6) 51... h5 $1 $19 {[%emt 0:01:50]} 52. Qc7 {[%emt 0:01:08] [#]} Qc8 {[%emt 0:03:19]} (52... h4 $1 $19 {Hoping for ...Qc8.} 53. Bd7 Qf6) 53. Qb6+ $11 {[%emt 0:01:06]} Ka8 {[%emt 0:00:15] ...h4 is the strong threat.} 54. Qxg6 {[%emt 0:01:26] Strongly threatening f5.} Qc7+ {[%emt 0:00:31]} 55. Qb6 {[%emt 0:00:02]} Qxf4 {[%emt 0:00:15]} 56. Bc6 {[%emt 0:00:07][%csl Gc6][%cal Rb6b7]} Qf7 {[%emt 0:02:30]} 57. Qxa6+ {[%emt 0:02:21]} Kb8 {[%emt 0:00:07]} 58. Qb6 {[%emt 0:00:05]} Qc7 {[%emt 0:01:49]} 59. Bxb7 {[%emt 0:00:08]} Qxb7 {[%emt 0:00:12] KQ-KQ} 60. Qd8+ {[%emt 0:00:05]} Ka7 {[%emt 0:00:53][%csl Ga7][%cal Rb7a6]} 61. b5 {[%emt 0:00:06] Against Qa6+} Qf7 {[%emt 0:01:02]} 62. Qc8 {[%emt 0:01:16][%csl Ga5][%cal Rb5b6]} Qb7 {[%emt 0:00:15] Inhibits b6+.} 63. Qc5+ {[%emt 0:00:06]} Kb8 {[%emt 0:00:23] ( -> ...Qa7+)} 64. b6 {[%emt 0:00:09] Prevents Qa7+. Qd6+ would kill now.} Qd7 {[%emt 0:00:39] Against Qd6+} 65. Qf8+ {[%emt 0:01:09]} Kb7 {[%emt 0:00:10]} 66. Qf6 {[%emt 0:00:21]} Qc8 $2 {[%emt 0:01:37][%mdl 8192]} (66... Qh7 $11) 67. Qe7+ {[%emt 0:00:22] White mates.} Kc6 {[%emt 0:00:06]} 68. Qc5+ {[%emt 0:00:06]} Kb7 {[%emt 0:00:27]} 69. Qxd5+ {[%emt 0:00:02]} Kb8 {[%emt 0:00:10]} 70. Qd6+ {[%emt 0:01:01]} Kb7 {[%emt 0:00:03]} 71. Qe7+ {[%emt 0:00:05]} Kc6 {[%emt 0:00:09]} 72. Qc5+ {[%emt 0:01:08]} Kb7 {[%emt 0:00:01] [#]} 73. Qxc8+ $1 {[%emt 0:00:07]} Kxc8 {[%emt 0:00:06]} 74. Ka6 {[%emt 0:00:02]} Kb8 {[%emt 0:00:08]} 75. d5 {[%emt 0:00:02] What a fight!  Weighted Error Value: White=0.19 (very precise) /Black=0.17 (very precise)} 1-0

[Event "1000GM Saint Louis 2022"]
[Site "Saint Louis"]
[Date "2022.07.20"]
[Round "4.2"]
[White "Chandra, Akshat"]
[Black "Dragun, Kamil"]
[Result "1/2-1/2"]
[ECO "E08"]
[WhiteElo "2485"]
[BlackElo "2563"]
[Annotator "TA"]
[PlyCount "55"]
[EventDate "2022.07.20"]
[EventType "tourn"]
[EventCountry "USA"]
[SourceTitle "playchess.com"]
[Source "ChessBase"]
[SourceQuality "1"]
[TimeControl "5400+30"]

{[%evp 23,42,0,12,0,19,18,18,28,31,26,33,33,37,36,30,30,35,37,29,32,33]} 1. d4 {[%emt 0:06:28]} Nf6 {[%emt 0:00:06]} 2. Nf3 {[%emt 0:00:28]} e6 {[%emt 0:00:33]} 3. c4 {[%emt 0:00:11]} d5 {[%emt 0:01:08]} 4. g3 {[%emt 0:00:16]} Bb4+ {[%emt 0:00:11]} 5. Bd2 {[%emt 0:00:04][%cal Bc1d2,Bd2f4,Bf4c7][%mdl 32]} Be7 {[%emt 0:00:11]} 6. Bg2 {[%emt 0:00:05]} c6 {[%emt 0:00:06]} 7. Qc2 {[%emt 0:00:04]} Nbd7 {[%emt 0:00:07]} 8. O-O {[%emt 0:00:06]} O-O {[%emt 0:00:04]} 9. Bf4 {[%emt 0:00:25]} b6 {[%emt 0:00:42]} 10. cxd5 {[%emt 0:00:36]} cxd5 {[%emt 0:00:32]} 11. Rc1 {[%emt 0:00:09]} Bb7 {[%emt 0:00:28]} 12. Bc7 {[%emt 0:01:08]} Qe8 {[%emt 0:00:12]} 13. Qb3 {[%emt 0:00:48] E08: Closed Catalan: Main Line: 7 Qc2.} Rc8 {[%emt 0:00:23][%cal Od7c5]} 14. Na3 {[%emt 0:01:30]} Ba6 {[%emt 0:00:15]} 15. Nb5 {[%emt 0:00:56] The position is equal.} Bxb5 {[%emt 0:00:09]} 16. Qxb5 {[%emt 0:00:04]} Nc5 {[%emt 0:00:14] Prevents Qa6.} 17. Qxe8 {[%emt 0:00:17]} Rfxe8 {[%emt 0:00:09]} 18. Bf4 {[%emt 0:00:08]} Na4 {[%emt 0:00:06]} 19. Rxc8 {[%emt 0:00:09]} Rxc8 {[%emt 0:00:06]} 20. Rc1 {[%emt 0:00:05]} Rxc1+ {[%emt 0:00:58]} 21. Bxc1 {[%emt 0:00:06]} Nd7 {[%emt 0:01:15] [#]  Weighted Error Value: White=0.00 (flawless) /Black=0.04 (flawless)} {Predecessor:} 22. Ne1 $146 b5 23. Nd3 f5 24. Bd2 Nab6 25. b3 Nb8 26. Ne5 N6d7 27. Nxd7 Nxd7 28. Bf4 {0-1 (50) Giri,A (2776)-So,W (2760) Kolkata 2019} 1/2-1/2

[Event "1000GM Saint Louis 2022"]
[Site "Saint Louis"]
[Date "2022.07.20"]
[Round "4.2"]
[White "Yu, Jennifer"]
[Black "Gauri, Shankar"]
[Result "1-0"]
[ECO "E65"]
[WhiteElo "2268"]
[BlackElo "2376"]
[Annotator "TA"]
[PlyCount "139"]
[EventDate "2022.07.20"]
[EventType "tourn"]
[EventCountry "USA"]
[SourceTitle "playchess.com"]
[Source "ChessBase"]
[SourceQuality "1"]
[TimeControl "5400+30"]

{[%evp 18,139,16,12,19,12,8,8,10,0,0,0,5,20,28,20,62,56,45,45,45,23,23,23,23,23,16,16,31,18,10,16,20,12,11,7,9,8,15,11,12,13,18,8,17,0,0,0,0,0,58,27,29,22,21,8,8,17,185,198,224,231,250,137,137,137,137,137,137,137,265,138,425,366,761,704,721,645,1008,870,933,791,1327,1327,29939,29968,29979,29973,29978,29976,29974,29962,29973,29960,29959,29960,29967,29971,29966,29972,29972,29973,29969,29974,29975,29976,29976,29977,29976,29977,29978,29979,29978,29978,29979,29980,29984,29985,29985,29986,29986,29987,29987,29988]} 1. c4 {[%emt 0:08:49]} Nf6 {[%emt 0:16:24]} 2. Nc3 {[%emt 0:00:33]} g6 {[%emt 0:00:25]} 3. g3 {[%emt 0:00:22]} Bg7 {[%emt 0:00:22]} 4. Bg2 {[%emt 0:00:08]} d6 {[%emt 0:00:53]} 5. d4 {[%emt 0:00:23]} O-O {[%emt 0:00:35]} 6. Nf3 {[%emt 0:00:12]} c5 {[%emt 0:00:43]} 7. O-O {[%emt 0:00:58]} Nc6 {[%emt 0:00:21]} 8. dxc5 {[%emt 0:01:34]} dxc5 {[%emt 0:00:18]} 9. Bf4 {[%emt 0:00:04]} Nh5 {[%emt 0:00:59]} 10. Be3 {[%emt 0:03:25]} b6 {[%emt 0:04:53] [#] is currently scoring better than 10...Nd4. E65: King's Indian: Fianchetto: 6...c5 7 0-0 without d5 by White.} 11. Ne5 $1 {[%emt 0:04:10]} Bxe5 {[%emt 0:01:55]} 12. Bxc6 {[%emt 0:00:05]} Bh3 {[%emt 0:00:39] [#] The position is equal.} 13. Qxd8 $146 {[%emt 0:10:16]} ({Predecessor:} 13. Re1 Rc8 14. Qa4 e6 15. Bf3 Qc7 16. Nb5 Qe7 17. Qxa7 Qf6 18. Rad1 Rb8 19. b3 {1-0 (42) Veng,J (2294)-Berntsen Oybo,A (1777) Helsingor 2015}) 13... Raxd8 {[%emt 0:01:55]} 14. Rfd1 {[%emt 0:00:04]} Nf6 {[%emt 0:35:32]} 15. Bh6 {[%emt 0:15:19]} Rxd1+ {[%emt 0:00:21]} 16. Rxd1 {[%emt 0:00:03]} Rc8 {[%emt 0:00:41] [#]} 17. Nb5 $1 {[%emt 0:08:41] White is more active.} a6 {[%emt 0:08:25]} 18. Na7 {[%emt 0:00:07]} Rb8 {[%emt 0:01:34]} 19. Bg2 {[%emt 0:18:20]} (19. f3 $5 {[%cal Rc6a4]}) 19... Bxg2 {[%emt 0:03:22]} 20. Kxg2 {[%emt 0:00:15] Nc6 is the strong threat.} Bd6 {[%emt 0:00:34]} 21. Nc6 {[%emt 0:01:04]} Rb7 {[%emt 0:02:25]} 22. Bf4 {[%emt 0:00:30]} Ne8 {[%emt 0:11:48]} 23. Bxd6 {[%emt 0:08:32]} exd6 $14 {[%emt 0:00:03][%mdl 4096] Endgame KRN-KRN} 24. b4 {[%emt 0:00:04]} cxb4 {[%emt 0:02:01]} 25. Nxb4 {[%emt 0:00:04]} b5 {[%emt 0:04:56]} 26. cxb5 {[%emt 0:00:12]} Rxb5 {[%emt 0:00:33]} 27. Rd4 {[%emt 0:05:44]} ({Avoid the trap} 27. Nxa6 $2 Rb6 28. Nb8 Rxb8 $19) 27... a5 {[%emt 0:00:02]} 28. Nd5 {[%emt 0:00:04]} f5 {[%emt 0:00:18]} 29. a4 {[%emt 0:00:41]} Rc5 {[%emt 0:00:32]} 30. Nf4 {[%emt 0:02:38]} Kf7 {[%emt 0:00:17]} 31. Nd3 {[%emt 0:00:03]} Rc2 {[%emt 0:00:58]} 32. Rd5 {[%emt 0:03:01]} Rxe2 {[%emt 0:00:09]} 33. Rxa5 {[%emt 0:06:23]} Re7 {[%emt 0:01:40] Against Ra7} (33... Rd2 $11 34. Ra7+ Kg8) 34. Ra6 {[%emt 0:06:33]} Ke6 {[%emt 0:00:15]} 35. a5 {[%emt 0:03:16][%cal Ba4a5,Ba5a6,Ba6a7][%mdl 32]} Kd5 {[%emt 0:00:05]} 36. Rb6 {[%emt 0:00:04] aiming for a6.} Ra7 {[%emt 0:01:19]} 37. a6 {[%emt 0:02:13] And now Rb7 would win.} Ra8 $2 {[%emt 0:00:11]} (37... Kc4 $1 $11 {and Black stays safe.} 38. Nf4 g5) 38. Rb7 $18 {[%emt 0:01:05]} Kd4 {[%emt 0:00:30]} 39. Nb4 {[%emt 0:00:17]} Nf6 {[%emt 0:00:53]} 40. Rc7 {[%emt 0:02:08]} (40. a7 $18 Kc4 41. Na6) 40... Nd5 $16 {[%emt 0:00:29]} 41. Nxd5 {[%emt 0:00:38]} Kxd5 {[%emt 0:00:01] KR-KR} 42. a7 {[%emt 0:00:04]} h6 {[%emt 0:00:53]} 43. Kf3 {[%emt 0:00:07]} g5 {[%emt 0:00:35] [#]} (43... Kd4 $16 44. Kf4 Kd5) 44. h4 {[%emt 0:00:38]} (44. Ke3 $1 $18) 44... Ke5 $2 {[%emt 0:00:30][%mdl 8192] This move loses the game for Black.} (44... Kd4 $16 45. Ke2 d5) 45. Ke3 $18 {[%emt 0:00:17]} d5 $2 {[%emt 0:00:31]} (45... Kd5 46. h5 Re8+ 47. Kd3 Ra8) 46. Rh7 {[%emt 0:00:24] Black must now prevent f4+.} d4+ {[%emt 0:00:18]} 47. Kd3 {[%emt 0:00:04]} gxh4 {[%emt 0:00:29]} 48. gxh4 {[%emt 0:00:05]} Kd5 {[%emt 0:00:42]} 49. h5 {[%emt 0:00:53]} Ke5 {[%emt 0:00:25]} 50. Rb7 {[%emt 0:01:19]} Kf4 {[%emt 0:00:37]} 51. Kxd4 {[%emt 0:00:50] White mates.} Kg5 {[%emt 0:00:17]} 52. Ke5 {[%emt 0:00:57]} Re8+ {[%emt 0:00:09]} 53. Kd6 {[%emt 0:00:05]} Ra8 {[%emt 0:00:01]} 54. Ke6 {[%emt 0:00:36]} Re8+ {[%emt 0:00:04]} 55. Re7 {[%emt 0:00:04]} Ra8 {[%emt 0:00:01]} 56. Ke5 {[%emt 0:00:16]} f4 {[%emt 0:00:47]} 57. Rg7+ {[%emt 0:00:16]} Kxh5 {[%emt 0:00:04]} 58. Kxf4 {[%emt 0:00:04]} Re8 {[%emt 0:01:25]} 59. Rb7 {[%emt 0:01:08]} Ra8 {[%emt 0:00:50]} 60. Kg3 {[%emt 0:00:43]} Kg5 {[%emt 0:00:26]} 61. Rb5+ {[%emt 0:00:35]} Kf6 {[%emt 0:00:32]} 62. Ra5 {[%emt 0:00:03]} Ke6 {[%emt 0:01:25]} 63. Kh4 {[%emt 0:00:04]} Kf6 {[%emt 0:00:31]} 64. Kh5 {[%emt 0:00:04]} Kg7 {[%emt 0:00:30]} 65. Ra6 {[%emt 0:00:15]} Kf7 {[%emt 0:00:29]} 66. Kxh6 {[%emt 0:00:06]} Ke7 {[%emt 0:00:11]} 67. Kg7 {[%emt 0:00:16]} Kd7 {[%emt 0:00:05]} 68. f4 {[%emt 0:00:08][%cal Bf2f4,Bf4f5][%mdl 32]} Kc7 {[%emt 0:00:06]} 69. f5 {[%emt 0:00:06]} Kb7 70. Ra1 {[%emt 0:00:04] Weighted Error Value: White=0.10 (very precise) /Black=0.32} 1-0

[Event "1000GM Saint Louis 2022"]
[Site "Saint Louis"]
[Date "2022.07.20"]
[Round "4.3"]
[White "Abrahamyan, Tatev"]
[Black "Mardov, Dimitar"]
[Result "0-1"]
[ECO "A07"]
[WhiteElo "2291"]
[BlackElo "2396"]
[Annotator "TA"]
[PlyCount "84"]
[EventDate "2022.07.20"]
[EventType "tourn"]
[EventCountry "USA"]
[SourceTitle "playchess.com"]
[Source "ChessBase"]
[SourceQuality "1"]
[TimeControl "5400+30"]

{[%evp 9,84,10,16,5,19,19,15,11,24,1,43,39,50,21,34,-16,27,-16,39,25,38,0,0,-4,6,-68,-58,-68,-62,-58,-68,-70,-55,-54,-61,-55,-26,-29,-18,-33,0,7,7,-11,-9,-25,-31,-34,-20,-32,-25,-76,-27,-57,-65,-154,-162,-162,-160,-145,-91,-85,0,-96,-44,-530,-516,-770,-770,-743,-718,-1613,-1596,-1194,-1154,-967,-904]} 1. Nf3 {[%emt 0:03:00]} d5 {[%emt 0:00:11]} 2. g3 {[%emt 0:00:04]} Bg4 {[%emt 0:00:13]} 3. Bg2 {[%emt 0:00:04]} Nd7 {[%emt 0:00:19]} 4. O-O {[%emt 0:00:20]} e6 {[%emt 0:00:51]} 5. h3 {[%emt 0:00:04]} Bh5 {[%emt 0:00:30]} 6. d4 {[%emt 0:00:13][%cal Oc2c4] A07: Réti Opening: New York and Capablanca Systems.} Ngf6 {[%emt 0:01:23]} 7. c4 {[%emt 0:00:14]} c6 {[%emt 0:03:43]} 8. cxd5 {[%emt 0:00:39] The position is equal.} exd5 {[%emt 0:01:14]} 9. Ne5 {[%emt 0:00:28] is recently more successful than 9.Qb3.} Bg6 {[%emt 0:06:54]} 10. Nc3 {[%emt 0:01:53] [#]} Nb6 $146 {[%emt 0:13:04]} ({Predecessor:} 10... Bb4 11. Qb3 a5 12. f4 h6 13. Nxg6 fxg6 14. e4 Qb6 15. exd5 Qxd4+ 16. Kh2 Nc5 {1-0 (77) Grandelius,N (2656)-Giri,A (2773) Chess.com INT 2022}) 11. Bg5 {[%emt 0:08:26][%cal Bc1g5,Bg5h4,Bh4g3][%mdl 32]} (11. a4 $5 {[%cal Ra4a5]}) 11... Be7 {[%emt 0:01:08]} 12. f4 {[%emt 0:13:14]} (12. a4 $14) 12... Bf5 {[%emt 0:04:29]} 13. g4 {[%emt 0:06:03]} (13. a4 $5 {[%cal Ra4a5]}) 13... Bc8 {[%emt 0:01:11]} (13... Be4 $11) 14. Bh4 {[%emt 0:04:43]} O-O {[%emt 0:01:50][%cal Of6e4]} 15. Qd3 {[%emt 0:05:10]} Ne8 {[%emt 0:07:23]} 16. Bg3 {[%emt 0:06:01]} f5 {[%emt 0:02:58]} 17. gxf5 {[%emt 0:05:01]} (17. e3 $11) 17... Bxf5 {[%emt 0:08:18]} 18. e4 {[%emt 0:07:52]} dxe4 {[%emt 0:00:32]} 19. Nxe4 {[%emt 0:00:00]} Kh8 {[%emt 0:02:35]} 20. Qe2 {[%emt 0:05:43]} Nc7 {[%emt 0:02:19]} ({But not} 20... Qxd4+ 21. Bf2 Qb4 22. a3) (20... Bxe4 $5 21. Qxe4 Nd6 $15) 21. Rad1 {[%emt 0:03:19]} Nbd5 {[%emt 0:01:57][%cal Bb6d5,Bd5e7,Be7g6][%mdl 32]} 22. Nc5 {[%emt 0:04:06]} Bxc5 {[%emt 0:02:04]} 23. dxc5 {[%emt 0:00:04]} Qf6 {[%emt 0:02:25]} 24. Kh2 {[%emt 0:06:42]} Rae8 {[%emt 0:02:38]} 25. Rde1 {[%emt 0:01:35]} Ne7 {[%emt 0:07:05]} 26. Qf2 {[%emt 0:01:58] [#] Black must now prevent Bh4.} Ng6 {[%emt 0:02:10] Prevents Bh4.} 27. Rd1 {[%emt 0:07:27]} Nd5 {[%emt 0:03:46][%cal Og6f4]} 28. Rde1 {[%emt 0:04:42]} h6 {[%emt 0:07:51]} 29. Re2 {[%emt 0:01:09]} Nxe5 {[%emt 0:01:16]} 30. Rxe5 {[%emt 0:00:19]} (30. fxe5 $11 Qg6 31. Qd4) 30... Nb4 {[%emt 0:01:14]} (30... Bd3 $17 31. Rfe1 Rxe5 32. Rxe5 Nxf4 33. Qxf4 Qxf4 34. Bxf4 Rxf4 35. Re8+ Kh7) 31. Qe3 {[%emt 0:01:11]} Rd8 {[%emt 0:00:49]} 32. Qa3 {[%emt 0:01:51]} (32. Be1 $15 Nd3 33. Ba5) 32... Nd3 $17 {[%emt 0:01:28]} 33. Re2 {[%emt 0:00:18]} Rfe8 {[%emt 0:01:27]} 34. Rd2 {[%emt 0:00:05]} Qg6 {[%emt 0:01:38]} ({Black should play} 34... h5 {Threatens to win with ...h4.} 35. Qc3 (35. Qxa7 $2 h4 $19) 35... Qxc3 36. bxc3 Nxc5 37. Rxd8 Rxd8) 35. Qc3 {[%emt 0:01:29]} Re3 {[%emt 0:01:15]} (35... Rd7 $17) 36. Rf3 {[%emt 0:00:23]} (36. Bf2 $11 {remains equal.} Rxh3+ 37. Bxh3) 36... Rde8 {[%emt 0:00:53] 0x0.001f23cb1749dp-1022s more active pieces.} (36... Qe6 $17 37. Rxe3 Qxe3) 37. Rdf2 $2 {[%emt 0:01:08][%mdl 8192] Now White is beyond hope.} Rxf3 $19 {[%emt 0:01:14] Black is clearly winning.} 38. Rxf3 {[%emt 0:00:03]} Re2 {[%emt 0:00:17] [#] Hoping for ...Be4.} 39. Qd4 {[%emt 0:01:26]} Be4 {[%emt 0:01:02]} 40. Qd8+ {[%emt 0:00:48]} Kh7 {[%emt 0:00:06]} 41. f5 {[%emt 0:00:01]} Rxg2+ {[%emt 0:01:48]} 42. Kxg2 {[%emt 0:00:15]} Qh5 {[%emt 0:00:17][%mdl 64] Pin.  Weighted Error Value: White=0.58/Black=0.16 (very precise)} 0-1

[Event "1000GM Saint Louis 2022"]
[Site "Saint Louis"]
[Date "2022.07.20"]
[Round "4.3"]
[White "Yu, Jennifer"]
[Black "Gauri, Shankar"]
[Result "*"]
[ECO "E65"]
[WhiteElo "2268"]
[BlackElo "2376"]
[Annotator "TA"]
[PlyCount "37"]
[EventDate "2022.07.20"]
[EventType "tourn"]
[EventCountry "USA"]
[SourceTitle "playchess.com"]
[Source "ChessBase"]
[SourceQuality "1"]
[TimeControl "5400+30"]

{[%evp 18,24,14,0,0,0,0,0,14]} 1. c4 {[%emt 0:08:49]} Nf6 {[%emt 0:16:24]} 2. Nc3 {[%emt 0:00:33]} g6 {[%emt 0:00:25]} 3. g3 {[%emt 0:00:22]} Bg7 {[%emt 0:00:22]} 4. Bg2 {[%emt 0:00:08]} d6 {[%emt 0:00:53]} 5. d4 {[%emt 0:00:23]} O-O {[%emt 0:00:35]} 6. Nf3 {[%emt 0:00:12]} c5 {[%emt 0:00:43]} 7. O-O {[%emt 0:00:58]} Nc6 {[%emt 0:00:21]} 8. dxc5 {[%emt 0:01:34]} dxc5 {[%emt 0:00:18]} 9. Bf4 {[%emt 0:00:04]} Nh5 {[%emt 0:00:59]} 10. Be3 {[%emt 0:03:25] The position is equal.} b6 {[%emt 0:04:53] is recently more successful than 10...Nd4. E65: King's Indian: Fianchetto: 6...c5 7 0-0 without d5 by White.} 11. Ne5 {[%emt 0:04:10]} Bxe5 {[%emt 0:01:55]} 12. Bxc6 {[%emt 0:00:05]} Bh3 {[%emt 0:00:39] [#] An interesting draw.  Weighted Error Value: White=0.05 (flawless) /Black=0.00 (flawless)} {Predecessor:} 13. Re1 $146 Rc8 14. Qa4 e6 15. Bf3 Qc7 16. Nb5 Qe7 17. Qxa7 Qf6 18. Rad1 Rb8 19. b3 {1-0 (42) Veng,J (2294)-Berntsen Oybo,A (1777) Helsingor 2015} *